[Event "Live Chess"]
[Site "Chess.com"]
[Date "2023.05.21"]
[Round "-"]
[White "martinsmartin63"]
[Black "seabuck"]
[Result "0-1"]
[WhiteElo "761"]
[BlackElo "1894"]
[TimeControl "300"]
[EndTime "23:13:58 PDT"]
[Termination "seabuck won by resignation"]

1. e4 {[%clk 0:04:53]} 1... c6 {[%clk 0:04:58.2]} 2. Nf3 {[%clk 0:04:48.3]} 2...
d5 {[%clk 0:04:56.8]} 3. d4 {[%clk 0:04:46.4]} 3... dxe4 {[%clk 0:04:54.6]} 4.
Ne5 {[%clk 0:04:44.9]} 4... Nf6 {[%clk 0:04:35.2]} 5. Nc3 {[%clk 0:04:41.7]}
5... Bf5 {[%clk 0:04:32.3]} 6. f3 {[%clk 0:04:36.6]} 6... exf3 {[%clk
0:04:26.5]} 7. Qxf3 {[%clk 0:04:34]} 7... Bg6 {[%clk 0:04:20.6]} 8. Bd3 {[%clk
0:04:28.1]} 8... Qxd4 {[%clk 0:04:09.6]} 9. Bxg6 {[%clk 0:04:23.3]} 9... Qxe5+
{[%clk 0:03:58.6]} 10. Be4 {[%clk 0:04:20]} 10... Nxe4 {[%clk 0:03:57.3]} 11.
Nxe4 {[%clk 0:04:16.1]} 11... f5 {[%clk 0:03:48.4]} 12. O-O {[%clk 0:03:56.8]}
12... Qxe4 {[%clk 0:03:44.5]} 13. Qxf5 {[%clk 0:03:51.3]} 13... Qxf5 {[%clk
0:03:43.2]} 14. Rxf5 {[%clk 0:03:47.4]} 14... Nd7 {[%clk 0:03:36.7]} 15. Be3
{[%clk 0:03:34]} 15... g6 {[%clk 0:03:33.5]} 16. Rf2 {[%clk 0:03:25.9]} 16...
Bg7 {[%clk 0:03:31.6]} 17. Rd1 {[%clk 0:03:21]} 17... Bxb2 {[%clk 0:03:17.1]}
18. Bd4 {[%clk 0:03:13.8]} 18... Bxd4 {[%clk 0:03:15.1]} 19. Rxd4 {[%clk
0:03:11.2]} 19... Nf6 {[%clk 0:03:12.7]} 20. Rd3 {[%clk 0:03:02.6]} 20... O-O
{[%clk 0:03:08.3]} 21. Re3 {[%clk 0:02:57.4]} 21... Rfe8 {[%clk 0:02:59]} 22. g4
{[%clk 0:02:50.5]} 22... Nxg4 {[%clk 0:02:57.4]} 0-1

[Event "Live Chess"]
[Site "Chess.com"]
[Date "2023.05.21"]
[Round "-"]
[White "jbooth"]
[Black "Ocelot32"]
[Result "0-1"]
[WhiteElo "1667"]
[BlackElo "1385"]
[TimeControl "300"]
[EndTime "23:14:05 PDT"]
[Termination "Ocelot32 won by resignation"]

1. e4 {[%clk 0:04:48.4]} 1... e6 {[%clk 0:04:58.5]} 2. d4 {[%clk 0:04:45.8]}
2... d5 {[%clk 0:04:57.5]} 3. Nc3 {[%clk 0:04:43.7]} 3... dxe4 {[%clk
0:04:56.2]} 4. Nxe4 {[%clk 0:04:42.6]} 4... Nd7 {[%clk 0:04:55.8]} 5. Nf3 {[%clk
0:04:40.5]} 5... Ngf6 {[%clk 0:04:55.3]} 6. Bg5 {[%clk 0:04:36.1]} 6... Be7
{[%clk 0:04:54.6]} 7. Bxf6 {[%clk 0:04:32.9]} 7... Nxf6 {[%clk 0:04:53.5]} 8.
Bd3 {[%clk 0:04:31.7]} 8... b6 {[%clk 0:04:45]} 9. O-O {[%clk 0:04:29.8]} 9...
Bb7 {[%clk 0:04:43.8]} 10. c3 {[%clk 0:04:28.5]} 10... O-O {[%clk 0:04:42.5]}
11. Re1 {[%clk 0:04:25.7]} 11... Nxe4 {[%clk 0:04:32.6]} 12. Bxe4 {[%clk
0:04:23.5]} 12... Bxe4 {[%clk 0:04:31.3]} 13. Rxe4 {[%clk 0:04:22.2]} 13... Bd6
{[%clk 0:04:30.3]} 14. Qd3 {[%clk 0:04:09.5]} 14... Qf6 {[%clk 0:04:28]} 15. Rh4
{[%clk 0:04:02.3]} 15... h6 {[%clk 0:04:24.1]} 16. Re1 {[%clk 0:03:59.9]} 16...
c5 {[%clk 0:04:21.4]} 17. Rh3 {[%clk 0:03:56.9]} 17... cxd4 {[%clk 0:04:16.1]}
18. cxd4 {[%clk 0:03:55.4]} 18... Bb4 {[%clk 0:04:06.8]} 19. Rf1 {[%clk
0:03:47.7]} 19... Rfd8 {[%clk 0:04:01.3]} 20. a3 {[%clk 0:03:46.3]} 20... Bd6
{[%clk 0:03:58.6]} 21. Re1 {[%clk 0:03:38.8]} 21... Rac8 {[%clk 0:03:54.1]} 22.
Qa6 {[%clk 0:03:23.6]} 22... Rc2 {[%clk 0:03:39.4]} 23. Qxa7 {[%clk 0:03:15.2]}
23... Rxb2 {[%clk 0:03:37.2]} 24. Ne5 {[%clk 0:03:14.3]} 24... Qxf2+ {[%clk
0:03:33.2]} 0-1

[Event "Live Chess"]
[Site "Chess.com"]
[Date "2023.05.21"]
[Round "-"]
[White "Hacker_2009"]
[Black "BillythekidFellowes"]
[Result "1-0"]
[WhiteElo "1937"]
[BlackElo "2028"]
[TimeControl "300"]
[EndTime "23:14:09 PDT"]
[Termination "Hacker_2009 won by resignation"]

1. d4 {[%clk 0:04:56.1]} 1... d5 {[%clk 0:04:57.6]} 2. Nf3 {[%clk 0:04:56]} 2...
Nf6 {[%clk 0:04:54.6]} 3. e3 {[%clk 0:04:55.9]} 3... Bg4 {[%clk 0:04:48.6]} 4.
Be2 {[%clk 0:04:53.4]} 4... e6 {[%clk 0:04:44]} 5. c4 {[%clk 0:04:52.8]} 5... c6
{[%clk 0:04:41.9]} 6. cxd5 {[%clk 0:04:51.8]} 6... exd5 {[%clk 0:04:41.8]} 7.
O-O {[%clk 0:04:49.8]} 7... Bd6 {[%clk 0:04:41.2]} 8. Nc3 {[%clk 0:04:48.1]}
8... O-O {[%clk 0:04:40.2]} 9. b3 {[%clk 0:04:47.5]} 9... Bc7 {[%clk 0:04:39]}
10. Bb2 {[%clk 0:04:46.4]} 10... Qd6 {[%clk 0:04:38.4]} 11. g3 {[%clk
0:04:45.3]} 11... Ne4 {[%clk 0:04:36.4]} 12. Nxe4 {[%clk 0:04:43.3]} 12... dxe4
{[%clk 0:04:36.3]} 13. Ne5 {[%clk 0:04:42.6]} 13... Bxe2 {[%clk 0:04:36.2]} 14.
Qxe2 {[%clk 0:04:41.2]} 14... Nd7 {[%clk 0:04:36.1]} 15. Nc4 {[%clk 0:04:34.5]}
15... Qg6 {[%clk 0:04:33.7]} 16. Rfd1 {[%clk 0:04:31.6]} 16... f5 {[%clk
0:04:22.2]} 17. d5 {[%clk 0:04:28.8]} 17... cxd5 {[%clk 0:04:14.4]} 18. Rxd5
{[%clk 0:04:28.7]} 18... Nf6 {[%clk 0:04:12.1]} 19. Rd2 {[%clk 0:04:23.4]} 19...
h5 {[%clk 0:04:02.3]} 20. Rad1 {[%clk 0:04:22.6]} 20... h4 {[%clk 0:03:49.8]}
21. Ne5 {[%clk 0:04:22.1]} 21... Qg5 {[%clk 0:03:43.9]} 22. Qc4+ {[%clk
0:04:18]} 22... Kh7 {[%clk 0:03:37.4]} 23. Qxc7 {[%clk 0:04:10.6]} 23... hxg3
{[%clk 0:03:11.5]} 24. hxg3 {[%clk 0:04:00.1]} 24... Nh5 {[%clk 0:03:09.6]} 25.
Nc4 {[%clk 0:03:54.7]} 25... Rac8 {[%clk 0:02:55.9]} 26. Qxb7 {[%clk 0:03:31.3]}
26... Qg4 {[%clk 0:02:45.3]} 27. Rd7 {[%clk 0:02:59.3]} 27... Rb8 {[%clk
0:01:32.3]} 28. Qxa7 {[%clk 0:02:54.3]} 28... Ra8 {[%clk 0:01:31.6]} 29. Qc7
{[%clk 0:02:40.3]} 29... Rac8 {[%clk 0:01:30.7]} 30. Qd6 {[%clk 0:02:26.1]}
30... f4 {[%clk 0:01:10.2]} 31. exf4 {[%clk 0:02:20.6]} 31... Rxf4 {[%clk
0:01:10.1]} 32. Ne3 {[%clk 0:02:01.3]} 32... Qg6 {[%clk 0:00:58.9]} 33. Qxg6+
{[%clk 0:01:59]} 1-0

[Event "Live Chess"]
[Site "Chess.com"]
[Date "2023.05.21"]
[Round "-"]
[White "CeladonFish"]
[Black "YrrriKharkiv"]
[Result "0-1"]
[WhiteElo "1089"]
[BlackElo "2033"]
[TimeControl "300"]
[EndTime "23:14:47 PDT"]
[Termination "YrrriKharkiv won by resignation"]

1. d4 {[%clk 0:04:58.8]} 1... Nf6 {[%clk 0:04:58.4]} 2. c4 {[%clk 0:04:58]} 2...
c5 {[%clk 0:04:57.4]} 3. dxc5 {[%clk 0:04:56.5]} 3... g6 {[%clk 0:04:56]} 4. Nc3
{[%clk 0:04:55.1]} 4... Qa5 {[%clk 0:04:53.7]} 5. Bd2 {[%clk 0:04:53.6]} 5...
Qxc5 {[%clk 0:04:52.8]} 6. Nf3 {[%clk 0:04:52.3]} 6... Bg7 {[%clk 0:04:51.5]} 7.
e3 {[%clk 0:04:50.1]} 7... d6 {[%clk 0:04:50.2]} 8. Be2 {[%clk 0:04:49]} 8...
O-O {[%clk 0:04:48.7]} 9. O-O {[%clk 0:04:47.3]} 9... a6 {[%clk 0:04:45.8]} 10.
a3 {[%clk 0:04:45.8]} 10... Be6 {[%clk 0:04:43.4]} 11. b4 {[%clk 0:04:41.5]}
11... Qc7 {[%clk 0:04:39.4]} 12. Rc1 {[%clk 0:04:20]} 12... Bxc4 {[%clk
0:04:35.3]} 13. Na4 {[%clk 0:04:03.3]} 13... b5 {[%clk 0:04:31.1]} 14. Nb2
{[%clk 0:03:51.2]} 14... d5 {[%clk 0:04:26.3]} 15. e4 {[%clk 0:03:32.8]} 15...
Nxe4 {[%clk 0:04:11.5]} 16. Bxc4 {[%clk 0:03:27.6]} 16... dxc4 {[%clk
0:04:01.3]} 17. Rxc4 {[%clk 0:03:24.7]} 0-1

[Event "Live Chess"]
[Site "Chess.com"]
[Date "2023.05.21"]
[Round "-"]
[White "KeithArkell"]
[Black "Ferrarifan27"]
[Result "1-0"]
[WhiteElo "2562"]
[BlackElo "2065"]
[TimeControl "300"]
[EndTime "23:15:22 PDT"]
[Termination "KeithArkell won on time"]

1. d4 {[%clk 0:04:57.5]} 1... Nf6 {[%clk 0:04:57.7]} 2. Nf3 {[%clk 0:04:53.2]}
2... d5 {[%clk 0:04:52.3]} 3. c4 {[%clk 0:04:51.5]} 3... e6 {[%clk 0:04:46.1]}
4. cxd5 {[%clk 0:04:50.4]} 4... exd5 {[%clk 0:04:44.3]} 5. Nc3 {[%clk
0:04:49.6]} 5... c6 {[%clk 0:04:37.3]} 6. Qc2 {[%clk 0:04:47.7]} 6... Bd6 {[%clk
0:04:33.3]} 7. Bg5 {[%clk 0:04:46.7]} 7... h6 {[%clk 0:04:31.7]} 8. Bxf6 {[%clk
0:04:46.1]} 8... Qxf6 {[%clk 0:04:31.1]} 9. Nxd5 {[%clk 0:04:45.5]} 9... Qd8
{[%clk 0:04:07.1]} 10. Nc3 {[%clk 0:04:41.2]} 10... O-O {[%clk 0:03:52.7]} 11.
e3 {[%clk 0:04:39.4]} 11... Re8 {[%clk 0:03:51.1]} 12. Be2 {[%clk 0:04:37.9]}
12... Bg4 {[%clk 0:03:42.1]} 13. O-O {[%clk 0:04:36.8]} 13... Bc7 {[%clk
0:03:38.1]} 14. Rad1 {[%clk 0:04:27.1]} 14... Qd6 {[%clk 0:03:36.6]} 15. Ne5
{[%clk 0:04:22.5]} 15... Bxe2 {[%clk 0:03:30.3]} 16. Qxe2 {[%clk 0:04:21]} 16...
Nd7 {[%clk 0:03:26.5]} 17. Nf3 {[%clk 0:04:17.2]} 17... Nf6 {[%clk 0:03:22.6]}
18. h3 {[%clk 0:04:13.5]} 18... Rad8 {[%clk 0:03:17]} 19. Qc4 {[%clk 0:04:10.8]}
19... Nh7 {[%clk 0:03:06.5]} 20. Ne5 {[%clk 0:03:55.9]} 20... Re7 {[%clk
0:03:02.2]} 21. Ne4 {[%clk 0:03:45.9]} 21... Qd5 {[%clk 0:02:50.4]} 22. Qxd5
{[%clk 0:03:34.7]} 22... cxd5 {[%clk 0:02:47.1]} 23. Nc5 {[%clk 0:03:32.5]}
23... Bxe5 {[%clk 0:02:34.3]} 24. dxe5 {[%clk 0:03:30.9]} 24... Rxe5 {[%clk
0:02:30.7]} 25. Nxb7 {[%clk 0:03:29.1]} 25... Rb8 {[%clk 0:02:29.2]} 26. Na5
{[%clk 0:03:24.8]} 26... Rxb2 {[%clk 0:02:26.5]} 27. Nc6 {[%clk 0:03:22.6]}
27... Re6 {[%clk 0:02:10]} 28. Nxa7 {[%clk 0:03:19.8]} 28... Rxa2 {[%clk
0:02:06.5]} 29. Nb5 {[%clk 0:03:18.8]} 29... Nf6 {[%clk 0:01:55.5]} 30. Ra1
{[%clk 0:02:43.8]} 30... Rb2 {[%clk 0:01:43.7]} 31. Nd4 {[%clk 0:02:41.1]} 31...
Reb6 {[%clk 0:01:37.1]} 32. Ra8+ {[%clk 0:02:38.8]} 32... Kh7 {[%clk 0:01:35.6]}
33. Ra7 {[%clk 0:02:38]} 33... Rb7 {[%clk 0:01:32.4]} 34. Rxb7 {[%clk
0:02:36.5]} 34... Rxb7 {[%clk 0:01:32.3]} 35. Ra1 {[%clk 0:02:34.8]} 35... Kg6
{[%clk 0:01:23.6]} 36. g4 {[%clk 0:02:33.2]} 36... Rb2 {[%clk 0:01:13.1]} 37.
Ra6 {[%clk 0:02:28.9]} 37... Kh7 {[%clk 0:01:07.2]} 38. Ra7 {[%clk 0:02:21.2]}
38... Kg8 {[%clk 0:01:02.9]} 39. f3 {[%clk 0:01:57.7]} 39... Rd2 {[%clk
0:00:45.5]} 40. Ra8+ {[%clk 0:01:52]} 40... Kh7 {[%clk 0:00:43.8]} 41. Nf5
{[%clk 0:01:48.4]} 41... g6 {[%clk 0:00:33.8]} 42. Nd6 {[%clk 0:01:46]} 42...
Rd3 {[%clk 0:00:24.5]} 43. Ra7 {[%clk 0:01:45.1]} 43... Ng8 {[%clk 0:00:14.4]}
44. Rxf7+ {[%clk 0:01:43.7]} 44... Kh8 {[%clk 0:00:13.7]} 45. Kf2 {[%clk
0:01:42.1]} 45... Rd2+ {[%clk 0:00:12.3]} 46. Kg3 {[%clk 0:01:40.8]} 46... Rd3
{[%clk 0:00:11]} 47. Kf2 {[%clk 0:01:17.4]} 47... Rd2+ {[%clk 0:00:09.5]} 48.
Kf1 {[%clk 0:01:16.7]} 48... Rd1+ {[%clk 0:00:06.5]} 49. Ke2 {[%clk 0:01:15.2]}
49... Rh1 {[%clk 0:00:05.6]} 50. Rd7 {[%clk 0:01:14.7]} 50... Rxh3 {[%clk
0:00:04.2]} 51. Nf7+ {[%clk 0:01:13.6]} 51... Kg7 {[%clk 0:00:03.4]} 52. Ng5+
{[%clk 0:01:12.9]} 1-0

[Event "Live Chess"]
[Site "Chess.com"]
[Date "2023.05.21"]
[Round "-"]
[White "Hoogleboogle"]
[Black "Mugzwang"]
[Result "0-1"]
[WhiteElo "1338"]
[BlackElo "1688"]
[TimeControl "300"]
[EndTime "23:16:29 PDT"]
[Termination "Mugzwang won by resignation"]

1. d4 {[%clk 0:04:56.3]} 1... d5 {[%clk 0:04:58.7]} 2. c4 {[%clk 0:04:54.9]}
2... dxc4 {[%clk 0:04:57.1]} 3. e4 {[%clk 0:04:53.3]} 3... e5 {[%clk 0:04:54.8]}
4. d5 {[%clk 0:04:50.5]} 4... Nf6 {[%clk 0:04:42.1]} 5. Nc3 {[%clk 0:04:48.2]}
5... b5 {[%clk 0:04:38.8]} 6. Nf3 {[%clk 0:04:40.9]} 6... Bb4 {[%clk 0:04:30.6]}
7. Nxe5 {[%clk 0:04:36.8]} 7... Nxe4 {[%clk 0:04:25.5]} 8. a3 {[%clk 0:04:21.8]}
8... Nxc3 {[%clk 0:04:21.6]} 9. Qf3 {[%clk 0:04:04.7]} 9... Nxd5+ {[%clk
0:03:26.7]} 10. Bd2 {[%clk 0:04:01.8]} 10... Bxd2+ {[%clk 0:03:24.3]} 11. Kxd2
{[%clk 0:03:55.4]} 11... Nf6+ {[%clk 0:03:15.9]} 12. Kc3 {[%clk 0:03:49.8]}
12... Qd5 {[%clk 0:03:09.3]} 13. Qe3 {[%clk 0:03:11.2]} 13... O-O {[%clk
0:02:59.1]} 14. Rd1 {[%clk 0:03:08.7]} 14... Qe4 {[%clk 0:02:43.6]} 15. Rd4
{[%clk 0:02:36.3]} 15... Qxe3+ {[%clk 0:02:34.2]} 16. fxe3 {[%clk 0:02:35.1]}
16... Bb7 {[%clk 0:02:30.8]} 17. Rg1 {[%clk 0:02:26.8]} 17... Nc6 {[%clk
0:02:27.8]} 18. Nxc6 {[%clk 0:02:23.2]} 18... Bxc6 {[%clk 0:02:26.8]} 19. g3
{[%clk 0:02:20.5]} 19... Ne4+ {[%clk 0:02:22.4]} 20. Kc2 {[%clk 0:02:07]} 20...
Rad8 {[%clk 0:02:18.7]} 21. Bg2 {[%clk 0:01:48.3]} 21... Rxd4 {[%clk 0:02:11.5]}
22. exd4 {[%clk 0:01:45.8]} 22... Rd8 {[%clk 0:01:58.4]} 23. Rd1 {[%clk
0:01:30.4]} 23... Rd6 {[%clk 0:01:49.4]} 24. Bxe4 {[%clk 0:01:22.2]} 24... Bxe4+
{[%clk 0:01:44.4]} 25. Kc3 {[%clk 0:01:21]} 25... f5 {[%clk 0:01:38.5]} 26. Re1
{[%clk 0:01:13.8]} 26... a6 {[%clk 0:01:37.1]} 27. g4 {[%clk 0:01:12.2]} 27...
g6 {[%clk 0:01:35.5]} 28. gxf5 {[%clk 0:01:10]} 28... gxf5 {[%clk 0:01:34.4]}
29. Rg1+ {[%clk 0:01:08.8]} 29... Rg6 {[%clk 0:01:32.8]} 30. Rxg6+ {[%clk
0:01:05.4]} 30... hxg6 {[%clk 0:01:31.3]} 31. h4 {[%clk 0:01:02.8]} 31... Kf7
{[%clk 0:01:28.1]} 32. Kd2 {[%clk 0:01:02.1]} 32... Ke6 {[%clk 0:01:27.4]} 33.
Ke3 {[%clk 0:01:01.3]} 33... Kd5 {[%clk 0:01:26.3]} 34. a4 {[%clk 0:00:50]}
34... bxa4 {[%clk 0:01:24.6]} 35. Kf4 {[%clk 0:00:44.6]} 35... Kxd4 {[%clk
0:01:21.1]} 36. Kg5 {[%clk 0:00:43.6]} 36... f4 {[%clk 0:01:10.1]} 37. Kxf4
{[%clk 0:00:40.9]} 37... Bc2 {[%clk 0:01:00.5]} 38. Kf3 {[%clk 0:00:32.8]} 38...
c3 {[%clk 0:00:59.3]} 39. Ke2 {[%clk 0:00:30.5]} 39... cxb2 {[%clk 0:00:56.6]}
0-1

[Event "Live Chess"]
[Site "Chess.com"]
[Date "2023.05.21"]
[Round "-"]
[White "WilliamofOrange16th"]
[Black "hturner40"]
[Result "0-1"]
[WhiteElo "1815"]
[BlackElo "1803"]
[TimeControl "300"]
[EndTime "23:16:30 PDT"]
[Termination "hturner40 won by resignation"]

1. e4 {[%clk 0:04:58.1]} 1... Nc6 {[%clk 0:04:57.9]} 2. Nc3 {[%clk 0:04:54.9]}
2... e5 {[%clk 0:04:55.7]} 3. Nf3 {[%clk 0:04:53.4]} 3... Nf6 {[%clk 0:04:53.8]}
4. Bb5 {[%clk 0:04:52.5]} 4... Bd6 {[%clk 0:04:52.3]} 5. O-O {[%clk 0:04:42.2]}
5... O-O {[%clk 0:04:47.5]} 6. d3 {[%clk 0:04:40.4]} 6... Ne7 {[%clk 0:04:45.1]}
7. a3 {[%clk 0:04:36.4]} 7... c6 {[%clk 0:04:43.6]} 8. Bc4 {[%clk 0:04:35.6]}
8... Bc7 {[%clk 0:04:40.9]} 9. Bg5 {[%clk 0:04:34.4]} 9... Ng6 {[%clk
0:04:38.5]} 10. d4 {[%clk 0:04:09.1]} 10... h6 {[%clk 0:04:33.9]} 11. Bxf6
{[%clk 0:04:03.3]} 11... Qxf6 {[%clk 0:04:32]} 12. d5 {[%clk 0:03:58.5]} 12...
Nf4 {[%clk 0:04:21.8]} 13. Ne2 {[%clk 0:03:50.7]} 13... d6 {[%clk 0:04:06.5]}
14. Nxf4 {[%clk 0:03:44.6]} 14... Qxf4 {[%clk 0:04:05.2]} 15. Re1 {[%clk
0:03:36.4]} 15... Bg4 {[%clk 0:03:57.4]} 16. Re3 {[%clk 0:03:30.3]} 16... Bb6
{[%clk 0:03:54.3]} 17. Rb3 {[%clk 0:03:28.7]} 17... Qxe4 {[%clk 0:03:37.2]} 18.
Qd2 {[%clk 0:03:14.8]} 18... Qxc4 {[%clk 0:03:31.4]} 19. h3 {[%clk 0:03:06.9]}
19... Bxf3 {[%clk 0:03:12.3]} 20. Rxf3 {[%clk 0:03:06.8]} 20... Qxd5 {[%clk
0:03:09]} 21. Rd3 {[%clk 0:02:52.6]} 21... Qe4 {[%clk 0:02:58.6]} 22. Rxd6
{[%clk 0:02:48.7]} 22... Rad8 {[%clk 0:02:57.2]} 0-1

[Event "Live Chess"]
[Site "Chess.com"]
[Date "2023.05.21"]
[Round "-"]
[White "Driftboard"]
[Black "ossie57"]
[Result "0-1"]
[WhiteElo "755"]
[BlackElo "1927"]
[TimeControl "300"]
[EndTime "23:16:50 PDT"]
[Termination "ossie57 won by checkmate"]

1. e4 {[%clk 0:04:59]} 1... d5 {[%clk 0:04:57.4]} 2. exd5 {[%clk 0:04:54.1]}
2... Qxd5 {[%clk 0:04:56.1]} 3. Nc3 {[%clk 0:04:53.7]} 3... Qd8 {[%clk
0:04:55.3]} 4. Nf3 {[%clk 0:04:52.8]} 4... Bg4 {[%clk 0:04:54.1]} 5. Be2 {[%clk
0:04:51.3]} 5... Nf6 {[%clk 0:04:53.1]} 6. O-O {[%clk 0:04:50.1]} 6... e6 {[%clk
0:04:52.4]} 7. d3 {[%clk 0:04:49.6]} 7... c6 {[%clk 0:04:44.5]} 8. h3 {[%clk
0:04:48.3]} 8... Bh5 {[%clk 0:04:41.6]} 9. Ne5 {[%clk 0:04:42.5]} 9... Bg6
{[%clk 0:04:32.9]} 10. Nxg6 {[%clk 0:04:40.6]} 10... hxg6 {[%clk 0:04:32.8]} 11.
Bg5 {[%clk 0:04:36.9]} 11... Be7 {[%clk 0:04:23.4]} 12. Ne4 {[%clk 0:04:34.9]}
12... Nbd7 {[%clk 0:04:20.2]} 13. Bf4 {[%clk 0:04:21]} 13... e5 {[%clk 0:04:14]}
14. Nxf6+ {[%clk 0:04:16.3]} 14... gxf6 {[%clk 0:04:06.4]} 15. Bd2 {[%clk
0:04:12.8]} 15... Qc7 {[%clk 0:04:00.2]} 16. c3 {[%clk 0:04:09.9]} 16... O-O-O
{[%clk 0:03:57.7]} 17. d4 {[%clk 0:04:04.9]} 17... Kb8 {[%clk 0:03:49.4]} 18.
Qb3 {[%clk 0:03:50.9]} 18... Rh7 {[%clk 0:03:36.5]} 19. Bc4 {[%clk 0:03:44.3]}
19... Rf8 {[%clk 0:03:19]} 20. d5 {[%clk 0:03:34.8]} 20... cxd5 {[%clk 0:03:13]}
21. Bxd5 {[%clk 0:03:33.6]} 21... Nb6 {[%clk 0:03:12.3]} 22. Be3 {[%clk
0:03:20.7]} 22... Nxd5 {[%clk 0:03:07.7]} 23. Qxd5 {[%clk 0:03:20.1]} 23... Rd8
{[%clk 0:03:06.4]} 24. Qb3 {[%clk 0:03:00.9]} 24... f5 {[%clk 0:02:59.7]} 25.
Qa4 {[%clk 0:02:49.7]} 25... a6 {[%clk 0:02:54.6]} 26. Qb3 {[%clk 0:02:37.5]}
26... Bc5 {[%clk 0:02:43.1]} 27. Bxc5 {[%clk 0:02:23.4]} 27... Qxc5 {[%clk
0:02:43]} 28. Rfd1 {[%clk 0:02:18.9]} 28... Rxd1+ {[%clk 0:02:36.6]} 29. Rxd1
{[%clk 0:02:17.2]} 29... Qc7 {[%clk 0:02:31.1]} 30. Qd5 {[%clk 0:02:04.3]} 30...
Rh8 {[%clk 0:02:23.7]} 31. Qd7 {[%clk 0:01:56.2]} 31... Rc8 {[%clk 0:02:22.3]}
32. Qxc7+ {[%clk 0:01:46.2]} 32... Kxc7 {[%clk 0:02:10]} 33. Rd5 {[%clk
0:01:43.4]} 33... Re8 {[%clk 0:02:09.5]} 34. g4 {[%clk 0:01:39.5]} 34... Kc6
{[%clk 0:02:08.7]} 35. Rd2 {[%clk 0:01:34.8]} 35... f4 {[%clk 0:01:55.6]} 36.
Kg2 {[%clk 0:01:33.6]} 36... e4 {[%clk 0:01:53.9]} 37. h4 {[%clk 0:01:27]} 37...
f6 {[%clk 0:01:39.1]} 38. h5 {[%clk 0:01:18]} 38... gxh5 {[%clk 0:01:37.8]} 39.
gxh5 {[%clk 0:01:16.7]} 39... Rh8 {[%clk 0:01:35.5]} 40. Kh3 {[%clk 0:01:13.6]}
40... Rxh5+ {[%clk 0:01:34.4]} 41. Kg4 {[%clk 0:01:13.2]} 41... Rh7 {[%clk
0:01:11.4]} 42. Kxf4 {[%clk 0:01:11.8]} 42... Re7 {[%clk 0:01:02.6]} 43. Kf5
{[%clk 0:01:09.6]} 43... e3 {[%clk 0:00:59.5]} 44. fxe3 {[%clk 0:01:05.6]} 44...
Rxe3 {[%clk 0:00:58.7]} 45. Kxf6 {[%clk 0:01:04.6]} 45... Kc5 {[%clk 0:00:54.5]}
46. Kf5 {[%clk 0:00:55]} 46... Re1 {[%clk 0:00:50]} 47. b3 {[%clk 0:00:47.6]}
47... Rc1 {[%clk 0:00:48.3]} 48. c4 {[%clk 0:00:45.8]} 48... Re1 {[%clk
0:00:43.3]} 49. Kf4 {[%clk 0:00:29.1]} 49... Re7 {[%clk 0:00:40.6]} 50. Kf5
{[%clk 0:00:22.4]} 50... Kb4 {[%clk 0:00:39.8]} 51. Kf6 {[%clk 0:00:20.3]} 51...
Rc7 {[%clk 0:00:36.8]} 52. Kf5 {[%clk 0:00:17.7]} 52... Kc3 {[%clk 0:00:36.1]}
53. Kf4 {[%clk 0:00:17]} 53... Kxd2 {[%clk 0:00:35.2]} 54. Kf3 {[%clk
0:00:16.6]} 54... Kc2 {[%clk 0:00:34.5]} 55. Kf4 {[%clk 0:00:16.4]} 55... Kb2
{[%clk 0:00:34]} 56. Kf5 {[%clk 0:00:16.1]} 56... Kxa2 {[%clk 0:00:33.9]} 57.
Kf6 {[%clk 0:00:15.7]} 57... Kxb3 {[%clk 0:00:33.8]} 58. Kf5 {[%clk 0:00:15.3]}
58... Kxc4 {[%clk 0:00:33.4]} 59. Kf4 {[%clk 0:00:15.1]} 59... Rc5 {[%clk
0:00:32.3]} 60. Kf3 {[%clk 0:00:13.9]} 60... b5 {[%clk 0:00:31.7]} 61. Kf4
{[%clk 0:00:13.4]} 61... b4 {[%clk 0:00:31.5]} 62. Kf3 {[%clk 0:00:12.9]} 62...
b3 {[%clk 0:00:31.4]} 63. Kf4 {[%clk 0:00:12.5]} 63... b2 {[%clk 0:00:31.3]} 64.
Kf3 {[%clk 0:00:11.5]} 64... b1=Q {[%clk 0:00:31.2]} 65. Kf4 {[%clk 0:00:11.1]}
65... Rf5+ {[%clk 0:00:28.9]} 66. Kg3 {[%clk 0:00:07.9]} 66... Qf1 {[%clk
0:00:25.6]} 67. Kg4 {[%clk 0:00:06.2]} 67... Rf8 {[%clk 0:00:22.6]} 68. Kg5
{[%clk 0:00:05.3]} 68... Rg8+ {[%clk 0:00:21.6]} 69. Kh4 {[%clk 0:00:04.4]}
69... Qh1# {[%clk 0:00:20.8]} 0-1

[Event "Live Chess"]
[Site "Chess.com"]
[Date "2023.05.21"]
[Round "-"]
[White "peter-785"]
[Black "Rusty_Bridges"]
[Result "0-1"]
[WhiteElo "1220"]
[BlackElo "1528"]
[TimeControl "300"]
[EndTime "23:17:17 PDT"]
[Termination "Rusty_Bridges won by resignation"]

1. e4 {[%clk 0:04:58.6]} 1... d6 {[%clk 0:04:57.7]} 2. Nf3 {[%clk 0:04:58.1]}
2... Nf6 {[%clk 0:04:54.7]} 3. Nc3 {[%clk 0:04:55.1]} 3... Nbd7 {[%clk
0:04:52.7]} 4. Bc4 {[%clk 0:04:53.8]} 4... h6 {[%clk 0:04:49.9]} 5. d4 {[%clk
0:04:49.2]} 5... e5 {[%clk 0:04:48.4]} 6. dxe5 {[%clk 0:04:45.4]} 6... dxe5
{[%clk 0:04:48.3]} 7. O-O {[%clk 0:04:37]} 7... c6 {[%clk 0:04:45.1]} 8. Be3
{[%clk 0:04:29]} 8... Qc7 {[%clk 0:04:42]} 9. Bb3 {[%clk 0:04:15.1]} 9... Bc5
{[%clk 0:04:35.6]} 10. Re1 {[%clk 0:04:07.2]} 10... O-O {[%clk 0:04:32]} 11. Na4
{[%clk 0:03:59.9]} 11... Bb6 {[%clk 0:04:21.6]} 12. Nxb6 {[%clk 0:03:54.7]}
12... axb6 {[%clk 0:04:13.1]} 13. Bd2 {[%clk 0:03:38]} 13... Nc5 {[%clk
0:04:07.1]} 14. Bc3 {[%clk 0:03:19.3]} 14... Bg4 {[%clk 0:03:39.8]} 15. h3
{[%clk 0:03:13.8]} 15... Bxf3 {[%clk 0:03:28.2]} 16. Qxf3 {[%clk 0:03:09.6]}
16... Ncxe4 {[%clk 0:03:20.4]} 17. Rxe4 {[%clk 0:03:01.3]} 17... Nxe4 {[%clk
0:03:18.5]} 18. Qxe4 {[%clk 0:03:00.6]} 18... Rfe8 {[%clk 0:03:00]} 19. Qg4
{[%clk 0:02:48.8]} 19... b5 {[%clk 0:02:22.1]} 20. Re1 {[%clk 0:02:40.6]} 20...
c5 {[%clk 0:02:15.1]} 21. a3 {[%clk 0:02:33.9]} 21... c4 {[%clk 0:02:13.6]} 22.
Ba2 {[%clk 0:02:28.9]} 22... Ra6 {[%clk 0:02:07.4]} 23. Rxe5 {[%clk 0:02:16]}
23... Rxe5 {[%clk 0:02:02.8]} 24. Bxe5 {[%clk 0:02:14.4]} 24... Qxe5 {[%clk
0:02:01.2]} 25. Qc8+ {[%clk 0:02:11.7]} 25... Kh7 {[%clk 0:01:58.1]} 26. Qxb7
{[%clk 0:02:09]} 26... Rf6 {[%clk 0:01:44.7]} 27. Qa6 {[%clk 0:01:54.5]} 27...
Rxa6 {[%clk 0:01:42.1]} 0-1